bitfinex/quotes_BTCUSD_20250927
["timestamp","ask_amount","ask_price","bid_price","bid_amount"]
[1758985088282,0.56016515,109590.0,109580.0,0.0265]
[1758985088504,1.15449363,109590.0,109580.0,0.09642]
[1758985088722,1.15449363,109590.0,109580.0,0.0265]
[1758985088936,1.13134823,109590.0,109580.0,0.21562]
[1758985089156,1.10571965,109590.0,109580.0,0.21562]
[1758985089705,1.10571965,109590.0,109580.0,0.0265]
[1758985090073,1.10571965,109590.0,109580.0,0.3117]
[1758985090489,1.10571589,109590.0,109580.0,0.3117]
[1758985091043,1.10571589,109590.0,109580.0,0.0265]
[1758985091248,1.10571589,109590.0,109580.0,0.3117]
[1758985094646,1.17497528,109590.0,109580.0,0.3117]
[1758985100389,1.51497528,109590.0,109580.0,0.3117]
[1758985107900,1.50065982,109590.0,109580.0,0.3117]
[1758985109344,1.49424487,109590.0,109580.0,0.3117]
[1758985109593,1.50065597,109590.0,109580.0,0.3117]
[1758985110535,1.49463725,109590.0,109580.0,0.3117]
[1758985111117,1.50895365,109590.0,109580.0,0.3117]
[1758985117358,1.49463725,109590.0,109580.0,0.3117]
[1758985119130,1.49464461,109590.0,109580.0,0.3117]
[1758985120339,1.50896101,109590.0,109580.0,0.3117]
[1758985122116,1.3202368,109590.0,109580.0,0.3117]
[1758985124132,1.3202368,109590.0,109580.0,0.0265]
[1758985124343,1.3202368,109590.0,109580.0,0.31166]
[1758985128993,1.3059204,109590.0,109580.0,0.31166]
[1758985132097,1.32023681,109590.0,109580.0,0.31166]
[1758985133533,1.3202378,109590.0,109580.0,0.31166]
[1758985134152,1.50899119,109590.0,109580.0,0.31166]
[1758985134536,1.50899119,109590.0,109580.0,0.0265]
[1758985134737,1.59770266,109590.0,109580.0,0.1451]
[1758985134905,1.59770266,109590.0,109580.0,0.17066]
[1758985135105,1.50899119,109590.0,109580.0,0.0265]
[1758985135307,1.77983478,109590.0,109580.0,0.0265]
[1758985135885,1.8073002,109590.0,109580.0,0.0255]
[1758985136068,1.8083002,109590.0,109580.0,0.0245]
[1758985137060,1.5231402,109590.0,109580.0,0.0245]
[1758985137264,1.8073002,109590.0,109580.0,0.0245]
[1758985137426,1.57476021,109590.0,109580.0,0.0245]
[1758985137623,1.86192021,109590.0,109580.0,0.0245]
[1758985138612,2.30850416,109590.0,109580.0,0.0245]
[1758985139660,5.11505294,109590.0,109580.0,0.0245]
[1758985139866,4.84721383,109590.0,109580.0,0.0245]
[1758985140071,4.56205383,109590.0,109580.0,0.0245]
[1758985140279,4.50943382,109590.0,109580.0,0.0245]
[1758985140487,4.79459382,109590.0,109580.0,0.0245]
[1758985143421,4.60218162,109590.0,109580.0,0.0245]
[1758985143917,7.60218162,109590.0,109580.0,0.0245]
[1758985144120,5.4327214,109590.0,109580.0,0.02651]
[1758985144331,6.25355962,109590.0,109580.0,0.035485]
[1758985144537,5.3366002,109590.0,109580.0,0.035485]
[1758985144731,5.0514402,109590.0,109580.0,0.035485]
[1758985145467,5.0371229,109590.0,109580.0,0.035485]
[1758985147798,5.0371229,109590.0,109580.0,0.02951]
[1758985148199,4.8660109,109590.0,109580.0,0.02951]
[1758985148353,4.8803278,109590.0,109580.0,0.02951]
[1758985148579,2.6583958,109590.0,109580.0,0.02951]
[1758985148762,2.5812978,109590.0,109580.0,0.02951]
[1758985149622,2.5812978,109590.0,109580.0,0.0245]
[1758985151899,2.04561958,109590.0,109580.0,0.02657]
[1758985152082,2.5812978,109590.0,109580.0,0.02974]
[1758985152914,1.15017306,109590.0,109580.0,0.02974]
[1758985153153,1.57299606,109590.0,109580.0,0.02974]
[1758985153537,1.15017306,109590.0,109580.0,0.02974]
[1758985153745,1.60021806,109590.0,109580.0,0.02974]
[1758985156033,1.23998795,109590.0,109580.0,0.02974]
[1758985156213,1.50782706,109590.0,109580.0,0.02974]
[1758985156393,1.23998795,109590.0,109580.0,0.02974]
[1758985156796,1.43856767,109590.0,109580.0,0.02974]
[1758985157024,1.08091367,109590.0,109580.0,0.02974]
[1758985157566,0.81307456,109590.0,109580.0,0.02974]
[1758985158403,0.79875766,109590.0,109580.0,0.02974]
[1758985159004,0.79875766,109590.0,109580.0,0.03074]
[1758985159638,0.79675766,109590.0,109580.0,0.03074]
[1758985159835,0.52891855,109590.0,109580.0,0.21325505]
[1758985160117,0.79675766,109590.0,109580.0,0.21325505]
[1758985160788,0.79675766,109590.0,109580.0,0.21425505]
[1758985161159,0.81107337,109590.0,109580.0,0.21325505]
[1758985161491,0.81107337,109590.0,109580.0,0.21525505]
[1758985161697,0.81107337,109590.0,109580.0,0.21825505]
[1758985162143,0.81107337,109590.0,109580.0,0.03574]
[1758985163296,0.47107337,109590.0,109580.0,0.21825505]
[1758985163708,0.47107337,109590.0,109580.0,0.32086]
[1758985165238,0.47107337,109590.0,109580.0,0.50337505]
[1758985165636,0.47107337,109590.0,109580.0,0.03574]
[1758985165859,0.47107337,109590.0,109580.0,0.32086]
[1758985166468,0.81107337,109590.0,109580.0,0.03574]
[1758985166680,0.81107337,109590.0,109580.0,0.32086]
[1758985167520,0.81107337,109590.0,109580.0,0.50337505]
[1758985169009,0.79675766,109590.0,109580.0,0.50337505]
[1758985171742,0.79675766,109590.0,109580.0,0.21825505]
[1758985171942,0.81107357,109590.0,109580.0,0.50337505]
[1758985172138,0.81107357,109590.0,109580.0,0.52167256]
[1758985172347,0.81107357,109590.0,109580.0,0.21825505]
[1758985172544,0.81107357,109590.0,109580.0,0.50337505]
[1758985173643,0.81107357,109590.0,109580.0,0.21825505]
[1758985173843,0.81107357,109590.0,109580.0,0.50333505]
[1758985174286,0.81107357,109590.0,109580.0,0.32082]
[1758985175401,0.79675766,109590.0,109580.0,0.32082]
[1758985180091,0.81107357,109590.0,109580.0,0.32082]
[1758985186311,0.81107357,109590.0,109580.0,0.31765]
[1758985186753,0.81107357,109590.0,109580.0,0.03257]
[1758985186955,0.81107357,109590.0,109580.0,0.31765]
[1758985187377,0.81107357,109590.0,109580.0,0.03257]
[1758985187629,1.07891268,109590.0,109580.0,0.31558]
[1758985187829,1.07891268,109590.0,109580.0,0.0305]
[1758985188034,1.07891268,109590.0,109580.0,0.31558]
[1758985188655,1.07891268,109590.0,109580.0,0.31258]
[1758985189040,1.07891268,109590.0,109580.0,0.31358]
[1758985189187,1.07891268,109590.0,109580.0,0.0285]
[1758985189389,1.07891268,109590.0,109580.0,0.31358]
[1758985189710,1.07891268,109590.0,109580.0,0.31058]
[1758985189918,1.07891268,109590.0,109580.0,0.31158]
[1758985192476,1.07891268,109590.0,109580.0,0.0265]
[1758985192964,8.08726836,109590.0,109580.0,0.0265]
[1758985193167,8.08726836,109590.0,109580.0,0.20626]
[1758985193350,8.07295245,109590.0,109580.0,0.20626]
[1758985194155,7.67640749,109590.0,109580.0,0.20626]
[1758985195884,7.67640749,109590.0,109580.0,0.31158]
[1758985196110,7.69072393,109590.0,109580.0,0.31158]
[1758985197776,6.14999893,109590.0,109580.0,0.31158]
[1758985199365,3.21946693,109590.0,109580.0,0.31158]
[1758985200258,3.15168193,109590.0,109580.0,0.31158]
[1758985200483,0.87855882,109590.0,109580.0,0.31665]
[1758985200707,2.01259181,109590.0,109580.0,0.31665]
[1758985201782,2.01259181,109590.0,109580.0,0.31154]
[1758985202015,2.01259181,109590.0,109580.0,0.0265]
[1758985202433,2.01259181,109590.0,109580.0,0.19902]
[1758985202969,1.94510813,109590.0,109580.0,0.19902]
[1758985203161,1.94510813,109590.0,109580.0,0.19802]
[1758985203923,1.9046264,109590.0,109580.0,0.19702]
[1758985204278,1.9046264,109590.0,109580.0,0.30954]
[1758985204833,1.9046264,109590.0,109580.0,0.0245]
[1758985205020,1.9046264,109590.0,109580.0,0.30954]
[1758985205461,1.89030996,109590.0,109580.0,0.0245]
[1758985205675,1.97902143,109590.0,109580.0,0.07318]
[1758985205874,1.97902143,109590.0,109580.0,0.0245]
[1758985206071,2.00648474,109590.0,109580.0,0.0245]
[1758985207139,2.00648244,109590.0,109580.0,0.0245]
[1758985207539,2.07531676,109590.0,109580.0,0.0245]
[1758985209851,2.08963393,109590.0,109580.0,0.0245]
[1758985226152,2.08963043,109590.0,109580.0,0.0245]
[1758985228280,1.79011216,109590.0,109580.0,0.0245]
[1758985230221,2.13011216,109590.0,109580.0,0.0245]
[1758985235945,1.94995004,109590.0,109580.0,0.0245]
[1758985236575,1.93563287,109590.0,109580.0,0.0245]
[1758985236995,1.8469214,109590.0,109580.0,0.0245]
[1758985238794,2.1319214,109590.0,109580.0,0.0245]
[1758985239011,1.8469214,109590.0,109580.0,0.0245]
[1758985239222,2.1319214,109590.0,109580.0,0.0245]
[1758985239437,2.14623878,109590.0,109580.0,0.0245]
[1758985239700,1.94995025,109590.0,109580.0,0.0245]
[1758985239909,2.23495025,109590.0,109580.0,0.0245]
[1758985257825,2.05824634,109590.0,109580.0,0.0245]
[1758985258048,5.05824634,109590.0,109580.0,0.0245]
[1758985259483,5.05825641,109590.0,109580.0,0.0245]
[1758985262617,5.50483896,109590.0,109580.0,0.0245]
[1758985264979,5.21983896,109590.0,109580.0,0.0245]
[1758985265232,5.50483896,109590.0,109580.0,0.0245]
[1758985266590,5.43600464,109590.0,109580.0,0.0245]
[1758985270651,5.46615654,109590.0,109580.0,0.0245]
[1758985273801,4.54369852,109590.0,109580.0,0.02956]
[1758985274014,5.07940162,109590.0,109580.0,0.02956]
[1758985275555,4.79444162,109590.0,109580.0,0.02956]
[1758985275803,5.07940162,109590.0,109580.0,0.02956]
[1758985276820,4.79444162,109590.0,109580.0,0.02956]
[1758985277019,5.07940162,109590.0,109580.0,0.02956]
[1758985277606,5.06508424,109590.0,109580.0,0.02956]
[1758985278111,5.45179916,109590.0,109580.0,1e-08]
[1758985278322,0.53642182,109560.0,109550.0,0.08920565]
[1758985278544,10.34640123,109560.0,109550.0,0.08925222]
[1758985278747,10.36942123,109560.0,109550.0,0.09131222]
[1758985278948,10.39689105,109560.0,109550.0,0.09131222]
[1758985279918,10.39689105,109560.0,109550.0,0.09231222]
[1758985280559,10.39689105,109560.0,109550.0,0.11705222]
[1758985281095,10.39689105,109560.0,109550.0,0.11805222]
[1758985284122,10.3830176,109560.0,109550.0,0.11805222]
[1758985284981,10.47172907,109560.0,109550.0,0.11805222]
[1758985285142,10.3830176,109560.0,109550.0,0.11805222]
[1758985285353,10.0430176,109560.0,109550.0,0.11805222]
[1758985288492,10.0430176,109560.0,109550.0,0.11299222]
[1758985289096,10.11272801,109560.0,109550.0,0.11299222]
[1758985289514,10.11272801,109560.0,109550.0,0.11199222]
[1758985289852,10.11272801,109560.0,109550.0,0.11099222]
[1758985290198,10.0430176,109560.0,109550.0,0.11099222]
[1758985292017,10.09781692,109560.0,109550.0,0.11099222]
[1758985292676,10.43781692,109560.0,109550.0,0.11099222]
[1758985293432,10.3830176,109560.0,109550.0,0.11099222]
[1758985294562,10.20046923,109560.0,109550.0,0.10817315]
[1758985294741,10.3830176,109560.0,109550.0,0.10817315]
[1758985294949,10.39733836,109560.0,109550.0,0.10817315]
[1758985295574,10.3830176,109560.0,109550.0,0.10817315]
[1758985297998,10.38292632,109560.0,109550.0,0.10817315]
[1758985298859,10.1293955,109560.0,109550.0,0.10817315]
[1758985301920,9.90900156,109560.0,109550.0,0.10817315]
[1758985304485,9.90900156,109560.0,109550.0,0.10563599]
[1758985304706,9.90900156,109560.0,109550.0,0.10765599]
[1758985304898,9.89468083,109560.0,109550.0,0.10765599]
[1758985305695,9.89468083,109560.0,109550.0,0.11089599]
[1758985305897,9.90900159,109560.0,109550.0,0.11089599]
[1758985307362,9.89468083,109560.0,109550.0,0.11089599]
[1758985308799,9.57303819,109560.0,109550.0,0.11089599]
[1758985308994,10.10874129,109560.0,109550.0,0.11089599]
[1758985310717,10.12306194,109560.0,109550.0,0.11089599]
[1758985312166,10.40802194,109560.0,109550.0,0.10563599]
[1758985312294,10.49673341,109560.0,109550.0,0.10563599]
[1758985314466,10.40802194,109560.0,109550.0,0.10335255]
[1758985314914,10.39370129,109560.0,109550.0,0.10335255]
[1758985315466,10.39370129,109560.0,109550.0,0.0932388]
[1758985315875,10.40802205,109560.0,109550.0,0.0932388]
[1758985318429,10.40802205,109560.0,109550.0,0.08280158]
[1758985319048,10.48241276,109560.0,109550.0,0.08280158]
[1758985319829,10.39370129,109560.0,109550.0,0.08280158]
[1758985321448,5.81776719,109560.0,109550.0,0.08782158]
[1758985321566,6.08561874,109560.0,109550.0,0.08782158]
[1758985322104,6.09993932,109560.0,109550.0,0.08782158]
[1758985322813,5.83208777,109560.0,109550.0,0.08782158]
[1758985323199,6.18918292,109560.0,109550.0,0.08782158]
[1758985325009,6.17486234,109560.0,109550.0,0.08782158]
[1758985329456,5.84918255,109560.0,109550.0,0.08782158]
[1758985334323,5.65626265,109560.0,109550.0,0.08782158]
[1758985334536,5.68373224,109560.0,109550.0,0.08782158]
[1758985336260,6.04082739,109560.0,109550.0,0.08280158]
[1758985336741,5.68373224,109560.0,109550.0,0.08280158]
[1758985336952,6.04082739,109560.0,109550.0,0.08280158]
[1758985337583,5.69015178,109560.0,109550.0,0.08280158]
[1758985339153,5.67583157,109560.0,109550.0,0.08280158]
[1758985341982,5.69015204,109560.0,109550.0,0.08280158]
[1758985344108,6.03015204,109560.0,109550.0,0.08280158]
[1758985344323,6.71833771,109560.0,109550.0,0.08280158]
[1758985346244,6.70401724,109560.0,109550.0,0.08280158]
[1758985346667,6.65784672,109560.0,109550.0,0.08280158]
[1758985349287,6.67216758,109560.0,109550.0,0.08280158]
[1758985358292,6.65784672,109560.0,109550.0,0.08280158]
[1758985358908,6.65142718,109560.0,109550.0,0.08280158]
[1758985359121,6.65784582,109560.0,109550.0,0.08280158]
[1758985359363,6.74655729,109560.0,109550.0,0.08280158]
[1758985360591,0.34,109540.0,109530.0,0.0052]
[1758985360792,0.52259837,109530.0,109520.0,0.0002]
[1758985361041,10.52812731,109530.0,109520.0,0.00024659]
[1758985361189,10.19490216,109530.0,109520.0,0.00222659]
[1758985361418,10.22238084,109530.0,109520.0,0.00024659]
[1758985361746,10.31109231,109530.0,109520.0,0.00024659]
[1758985362290,10.66818746,109530.0,109520.0,0.00024659]
[1758985362712,10.66818746,109530.0,109520.0,0.02478659]
[1758985363226,10.72149702,109530.0,109520.0,0.02478659]
[1758985363422,10.7471271,109530.0,109520.0,0.02478659]
[1758985363750,10.10711195,109530.0,109520.0,0.02478659]
[1758985363964,9.93946084,109530.0,109520.0,0.02996659]
[1758985364149,10.22438084,109530.0,109520.0,0.02996659]
[1758985365469,10.22238084,109530.0,109520.0,0.02996659]
[1758985366632,9.93746084,109530.0,109520.0,0.02996659]
[1758985369032,9.59469035,109530.0,109520.0,0.02996659]
[1758985369242,9.9517855,109530.0,109520.0,0.02996659]
[1758985370531,9.59469035,109530.0,109520.0,0.02996659]
[1758985370746,9.9517855,109530.0,109520.0,0.02996659]
[1758985375488,9.93746084,109530.0,109520.0,0.02996659]
[1758985377098,9.75486247,109530.0,109520.0,0.02996659]
[1758985377302,9.93746084,109530.0,109520.0,0.02996659]
[1758985378473,9.9517855,109530.0,109520.0,0.02996659]
[1758985379482,9.6185365,109530.0,109520.0,0.02996659]
[1758985379821,7.5464005,109530.0,109520.0,0.02996659]
[1758985380384,7.2064005,109530.0,109520.0,0.02996659]
[1758985382271,3.81831835,109530.0,109520.0,0.02996659]
[1758985382476,3.70777967,109530.0,109520.0,0.51588313]
[1758985382683,3.04458067,109530.0,109520.0,0.49762163]
[1758985383091,2.83169366,109530.0,109520.0,0.49762163]
[1758985383296,2.55655203,109530.0,109520.0,0.49762163]
[1758985383506,2.55655203,109530.0,109520.0,0.49758163]
[1758985383724,2.55655203,109530.0,109520.0,0.525056]
[1758985384153,1.09976103,109530.0,109520.0,0.525056]
[1758985384510,1.01590203,109530.0,109520.0,0.525056]
[1758985384725,1.01590203,109530.0,109520.0,0.529056]
[1758985385722,1.00157737,109530.0,109520.0,0.529056]
[1758985386346,1.26953049,109530.0,109520.0,0.529056]
[1758985387191,1.00157737,109530.0,109520.0,0.624216]
[1758985387338,1.10683149,109530.0,109520.0,0.624216]
[1758985387756,1.10683149,109530.0,109520.0,0.244056]
[1758985387949,0.83887837,109530.0,109520.0,0.244056]
[1758985388151,0.92256849,109530.0,109520.0,0.624176]
[1758985388357,0.65461537,109530.0,109520.0,0.624176]
[1758985388561,0.99461537,109530.0,109520.0,0.624176]
[1758985388772,1.00893892,109530.0,109520.0,0.624176]
[1758985388982,1.00893892,109530.0,109520.0,0.244056]
[1758985389184,1.00893892,109530.0,109520.0,0.624176]
[1758985389392,1.00893892,109530.0,109520.0,0.244056]
[1758985389600,1.00893892,109530.0,109520.0,0.529016]
[1758985389797,1.00893892,109530.0,109520.0,0.624176]
[1758985391031,0.82634055,109530.0,109520.0,0.624176]
[1758985391251,0.23350638,109540.0,109530.0,0.18259837]
[1758985391478,0.62557163,109540.0,109530.0,0.18768837]
[1758985391688,0.62557163,109540.0,109530.0,0.21185837]
[1758985391896,0.89352475,109540.0,109530.0,0.23933074]
[1758985392525,0.62557163,109540.0,109530.0,0.23933074]
[1758985392736,0.89352475,109540.0,109530.0,0.23933074]
[1758985394009,0.89352475,109540.0,109530.0,0.62209074]
[1758985394195,0.89352475,109540.0,109530.0,0.62213074]
[1758985394400,0.62557163,109540.0,109530.0,0.62213074]
[1758985394814,0.77836375,109540.0,109530.0,0.62213074]
[1758985395414,0.76404082,109540.0,109530.0,0.62213074]
[1758985395785,0.4960877,109540.0,109530.0,0.62213074]
[1758985396609,0.4960877,109540.0,109530.0,0.62413074]
[1758985396813,0.4960877,109540.0,109530.0,0.62613074]
[1758985397013,0.4960877,109540.0,109530.0,0.62413074]
[1758985397162,0.4960877,109540.0,109530.0,0.62513074]
[1758985397733,0.4960877,109540.0,109530.0,0.62913074]
[1758985399805,0.51041,109540.0,109530.0,0.62913074]
[1758985401964,0.51041,109540.0,109530.0,0.62897074]
[1758985402749,1.38631624,109540.0,109530.0,0.31881]
[1758985403169,1.41378953,109540.0,109530.0,0.31881]
[1758985403608,1.42019666,109540.0,109530.0,0.31881]
[1758985403839,1.42019666,109540.0,109530.0,0.31481]
[1758985404048,1.39272337,109540.0,109530.0,0.31181]
[1758985404347,1.39272337,109540.0,109530.0,0.31381]
[1758985404523,1.39272337,109540.0,109530.0,0.31581]
[1758985405378,1.39272337,109540.0,109530.0,0.02817]
[1758985405567,1.39272337,109540.0,109530.0,0.31581]
[1758985405813,1.39272337,109540.0,109530.0,0.21677]
[1758985406208,1.37840107,109540.0,109530.0,0.21677]
[1758985406381,1.37840107,109540.0,109530.0,0.31597]
[1758985407005,1.37840107,109540.0,109530.0,0.02817]
[1758985407180,1.37840363,109540.0,109530.0,0.31597]
[1758985407970,1.37840363,109540.0,109530.0,0.31397]
[1758985408779,1.37840363,109540.0,109530.0,0.31197]
[1758985409232,1.39272658,109540.0,109530.0,0.31197]
[1758985411069,1.39272658,109540.0,109530.0,0.31205]
[1758985412704,1.21014488,109540.0,109530.0,0.31205]
[1758985412951,0.85682034,109540.0,109530.0,0.58524312]
[1758985413165,0.85041065,109540.0,109530.0,0.76784149]
[1758985413369,0.53690465,109540.0,109530.0,0.76784149]
[1758985413624,0.53690465,109540.0,109530.0,0.49988837]
[1758985414294,0.53690465,109540.0,109530.0,0.50388837]
[1758985415050,8.92168265,109540.0,109530.0,0.50388837]
[1758985415266,8.92168265,109540.0,109530.0,0.50688837]
[1758985415471,8.9073597,109540.0,109530.0,0.50688837]
[1758985415733,8.2198827,109540.0,109530.0,0.50688837]
[1758985418495,7.8798827,109540.0,109530.0,0.50688837]
[1758985418745,8.14783582,109540.0,109530.0,0.50688837]
[1758985418970,8.1621581,109540.0,109530.0,0.50688837]
[1758985419480,8.14783582,109540.0,109530.0,0.50688837]
[1758985420234,8.14783582,109540.0,109530.0,0.60208837]
[1758985421804,0.609762,109540.0,109530.0,0.87004149]
[1758985422446,0.20511711,109550.0,109540.0,0.1825817]
[1758985422447,0.02255,109550.0,109540.0,0.1825817]
[1758985422665,6.218586,109550.0,109540.0,0.45577482]
[1758985422897,6.218586,109550.0,109540.0,0.48065482]
[1758985423113,0.472776,109550.0,109540.0,0.48065482]
[1758985423534,0.05758,109560.0,109550.0,0.18256503]
[1758985423750,5.152862,109560.0,109550.0,0.83711815]
[1758985423927,4.411592,109560.0,109550.0,0.59608503]
[1758985424164,4.411592,109560.0,109550.0,0.86403815]
[1758985424747,4.59414037,109560.0,109550.0,0.86403815]
[1758985425208,3.41163037,109560.0,109550.0,0.48063815]
[1758985425428,3.94753661,109560.0,109550.0,0.02488]
[1758985425652,3.94753661,109560.0,109550.0,0.40824]
[1758985426985,3.94753661,109560.0,109550.0,0.31308]
[1758985428459,3.94753661,109560.0,109550.0,0.31304]
[1758985428695,3.94753661,109560.0,109550.0,0.02488]
[1758985428892,3.94753661,109560.0,109550.0,0.313]
[1758985430702,3.96185659,109560.0,109550.0,0.313]
[1758985433968,3.96185659,109560.0,109550.0,0.31284]
[1758985434378,3.94753661,109560.0,109550.0,0.31284]
[1758985434825,4.28753661,109560.0,109550.0,0.02488]
[1758985435145,4.29394308,109560.0,109550.0,0.07508]
[1758985437688,4.30826344,109560.0,109550.0,0.07508]
[1758985441827,4.30826344,109560.0,109550.0,0.31248]
[1758985442776,4.30826344,109560.0,109550.0,0.02488]
[1758985442957,4.30826344,109560.0,109550.0,0.31248]
[1758985443974,4.30826344,109560.0,109550.0,0.31252]
[1758985444540,4.12960487,109560.0,109550.0,0.31252]
[1758985445300,4.11528451,109560.0,109550.0,0.31252]
[1758985445883,4.92782329,109560.0,109550.0,0.02488]
[1758985446092,0.52259837,109530.0,109520.0,0.00024659]
[1758985446330,9.88625251,109530.0,109520.0,0.30712659]
[1758985446550,9.90916251,109530.0,109520.0,0.30911659]
[1758985447606,9.90916251,109530.0,109520.0,0.31111659]
[1758985447902,9.9185561,109530.0,109520.0,0.31418659]
[1758985448771,9.9185561,109530.0,109520.0,0.31618659]
[1758985448973,2.37825096,109530.0,109520.0,0.49880163]
[1758985449106,2.37825096,109530.0,109520.0,0.31618659]
[1758985449925,2.39257453,109530.0,109520.0,0.49880163]
[1758985450131,2.39257453,109530.0,109520.0,0.31618659]
[1758985451241,2.39257453,109530.0,109520.0,0.49880163]
[1758985452581,2.20997616,109530.0,109520.0,0.49880163]
[1758985452843,2.39257453,109530.0,109520.0,0.49880163]
[1758985453727,2.39257453,109530.0,109520.0,0.31618659]
[1758985455366,2.37825096,109530.0,109520.0,0.31618659]
[1758985455958,2.03825096,109530.0,109520.0,0.31618659]
[1758985456325,2.03825096,109530.0,109520.0,0.39234659]
[1758985458722,2.05257425,109530.0,109520.0,0.39234659]
[1758985461045,2.05257425,109530.0,109520.0,0.38911659]
[1758985461481,2.05257425,109530.0,109520.0,0.39217659]
[1758985462233,2.05257425,109530.0,109520.0,0.00929659]
[1758985462446,2.05257425,109530.0,109520.0,0.39217659]
[1758985463268,2.39257425,109530.0,109520.0,0.39217659]
[1758985464872,2.37825096,109530.0,109520.0,0.39217659]
[1758985465743,2.17604245,109530.0,109520.0,0.39217659]
[1758985466164,2.17604245,109530.0,109520.0,0.41622659]
[1758985467018,2.18505226,109530.0,109520.0,0.41622659]
[1758985468343,2.19937563,109530.0,109520.0,0.41622659]
[1758985469144,2.19937563,109530.0,109520.0,0.03334659]
[1758985469349,2.19937563,109530.0,109520.0,0.41292659]
[1758985470020,2.5566233,109530.0,109520.0,0.41292659]
[1758985470842,2.5566233,109530.0,109520.0,0.41093659]
[1758985471458,2.34548115,109530.0,109520.0,0.41093659]
[1758985473153,2.35189677,109530.0,109520.0,0.41093659]
[1758985473358,2.35189677,109530.0,109520.0,0.31625659]
[1758985473722,2.34288696,109530.0,109520.0,0.31625659]
[1758985476538,2.34288696,109530.0,109520.0,0.41133659]
[1758985477200,2.35232146,109530.0,109520.0,0.41133659]
[1758985479301,2.35232146,109530.0,109520.0,0.31609659]
[1758985480260,2.33799809,109530.0,109520.0,0.31609659]
[1758985481507,2.33799809,109530.0,109520.0,0.32117659]
[1758985482486,2.33799809,109530.0,109520.0,0.50379163]
[1758985483274,2.35232162,109530.0,109520.0,0.50379163]
[1758985483453,2.35232789,109530.0,109520.0,0.50379163]
[1758985483592,2.35232793,109530.0,109520.0,0.50379163]
[1758985484227,2.345906,109530.0,109520.0,0.50379163]
[1758985486821,1.80639679,109530.0,109520.0,0.50379163]
[1758985487063,3.15548407,109530.0,109520.0,0.50379163]
[1758985487266,2.82240307,109530.0,109520.0,0.50379163]
[1758985488884,2.4651554,109530.0,109520.0,0.50379163]
[1758985489084,2.80807954,109530.0,109520.0,0.50379163]
[1758985489284,2.80807954,109530.0,109520.0,0.41617659]
[1758985489867,2.80807954,109530.0,109520.0,0.59879163]
[1758985491990,2.82240268,109530.0,109520.0,0.59879163]
[1758985497323,1.26664231,109530.0,109520.0,0.59879163]
[1758985498141,1.44924068,109530.0,109520.0,0.59879163]
[1758985499821,1.10924068,109530.0,109520.0,0.59879163]
[1758985500022,1.44924068,109530.0,109520.0,0.59879163]
[1758985500449,1.23275446,109530.0,109520.0,0.59879163]
[1758985502392,1.23275446,109530.0,109520.0,0.21599163]
[1758985502613,1.23275446,109530.0,109520.0,0.59831163]
[1758985502813,1.23275446,109530.0,109520.0,0.50311163]
[1758985503017,1.23275446,109530.0,109520.0,0.59827163]
[1758985503444,1.24971442,109530.0,109520.0,0.21599163]
[1758985503703,1.24971442,109530.0,109520.0,0.59823163]
[1758985506007,1.06711605,109530.0,109520.0,0.59823163]
[1758985506221,0.52147905,109530.0,109520.0,0.59823163]
[1758985506446,0.3712831,109530.0,109520.0,0.59823163]
[1758985506674,0.63922875,109530.0,109520.0,0.59823163]
[1758985506896,1.06344375,109530.0,109520.0,0.59823163]
[1758985507127,0.99915375,109530.0,109520.0,0.59823163]
[1758985509255,0.7312081,109530.0,109520.0,0.59823163]
[1758985509549,0.63922875,109530.0,109520.0,0.59823163]
[1758985509789,0.29922875,109530.0,109520.0,0.59823163]
[1758985509985,0.63922875,109530.0,109520.0,0.59823163]
[1758985510386,0.99627675,109530.0,109520.0,0.59823163]
[1758985511250,1.44682077,109530.0,109520.0,0.31517659]
[1758985511459,1.44682077,109530.0,109520.0,0.02829659]
[1758985511665,1.44682077,109530.0,109520.0,0.41033659]
[1758985511875,1.07553767,109530.0,109520.0,0.31517659]
[1758985512112,1.08195775,109530.0,109520.0,0.41033659]
[1758985512275,1.08195775,109530.0,109520.0,0.31521659]
[1758985512487,1.08195775,109530.0,109520.0,0.02829659]
[1758985512812,1.08195775,109530.0,109520.0,0.41033659]
[1758985514070,1.43833123,109530.0,109520.0,0.41033659]
[1758985515265,1.45265455,109530.0,109520.0,0.41033659]
[1758985515643,1.43833123,109530.0,109520.0,0.41033659]
[1758985517626,1.43833123,109530.0,109520.0,0.02829659]
[1758985517867,1.43833123,109530.0,109520.0,0.41025659]
[1758985518490,1.45265458,109530.0,109520.0,0.41021659]
[1758985518712,1.50906184,109530.0,109520.0,0.02829659]
[1758985518934,1.49268836,109530.0,109520.0,0.31505659]
[1758985519378,1.49268836,109530.0,109520.0,0.31513659]
[1758985519820,1.49268836,109530.0,109520.0,0.02829659]
[1758985520041,1.49268836,109530.0,109520.0,0.31513659]
[1758985520790,1.50967721,109530.0,109520.0,0.02829659]
[1758985521009,1.50967721,109530.0,109520.0,0.31513659]
[1758985521177,1.50967721,109530.0,109520.0,0.31509659]
[1758985521580,1.53715362,109530.0,109520.0,0.31509659]
[1758985521779,1.53715362,109530.0,109520.0,0.31513659]
[1758985522293,1.53715362,109530.0,109520.0,0.31313659]
[1758985522500,1.53715362,109530.0,109520.0,0.31113659]
[1758985522811,1.53715362,109530.0,109520.0,0.31213659]
[1758985524537,4.33189554,109530.0,109520.0,0.31213659]
[1758985524801,4.3318894,109530.0,109520.0,0.31213659]
[1758985525714,4.31756605,109530.0,109520.0,0.31213659]
[1758985528993,4.33189,109530.0,109520.0,0.31213659]
[1758985535497,4.31756605,109530.0,109520.0,0.31213659]
[1758985535708,4.31756605,109530.0,109520.0,0.02529659]
[1758985535914,4.31756605,109530.0,109520.0,0.31197659]
[1758985536312,4.1446437,109530.0,109520.0,0.31197659]
[1758985536514,10.1446437,109530.0,109520.0,0.31197659]
[1758985537673,10.1446437,109530.0,109520.0,0.02529659]
[1758985537841,10.41258935,109530.0,109520.0,0.31193659]
[1758985538616,10.42691392,109530.0,109520.0,0.31193659]
[1758985542140,10.42691392,109530.0,109520.0,0.02529659]
[1758985542355,10.51562539,109530.0,109520.0,0.02529659]
[1758985542561,11.31946234,109530.0,109520.0,0.02529659]
[1758985542771,11.60826234,109530.0,109520.0,0.0197717]
[1758985542943,0.5821735,109520.0,109510.0,0.14196]
[1758985543142,11.19626134,109520.0,109510.0,0.0002]
[1758985543365,0.52263172,109510.0,109500.0,0.46563779]
[1758985543597,10.39244107,109510.0,109500.0,0.46563779]
[1758985543803,10.41701107,109510.0,109500.0,0.46563779]
[1758985544205,10.45881919,109510.0,109500.0,0.46563779]
[1758985544625,10.19087354,109510.0,109500.0,0.46663779]
[1758985544856,10.15936183,109510.0,109500.0,0.46663779]
[1758985545259,10.42730748,109510.0,109500.0,0.46663779]
[1758985545501,10.15936183,109510.0,109500.0,0.46663779]
[1758985546115,10.15936183,109510.0,109500.0,0.46876779]